fUST/lending_fUST_20251018
["ID","MTS","AMOUNT","RATE_DAILY","PERIOD"]
[391775985,1760796637951,-250.0,0.0002887,2]
[391775986,1760796637961,-982.0,0.00028889,2]
[391775987,1760796637970,-599.934,0.00028889,2]
[391775988,1760796637979,-176.188,0.00028889,2]
[391775989,1760796637989,-411.0,0.00028889,2]
[391775990,1760796637998,-160.0,0.00029267,2]
[391775991,1760796638008,-500.0,0.00029609,7]
[391775992,1760796638017,-422.38942645,0.00029783,2]
[391775993,1760796638026,-260.0,0.00029815,2]
[391775994,1760796638036,-402.78104431,0.00029915,2]
[391775995,1760796638047,-160.0,0.00029915,2]
[391775996,1760796638056,-900.0,0.0003,2]
[391775997,1760796638066,-2018.42299926,0.00030136,2]
[391775998,1760796638076,-500.0,0.00030224,7]
[391775999,1760796638086,-360.0,0.00030363,2]
[391776000,1760796638095,-378.83518,0.000305,120]
[391776001,1760796638105,-200.0,0.000305,120]
[391776002,1760796638115,-200.0,0.000305,120]
[391776003,1760796638124,-460.0,0.00030911,2]
[391776004,1760796638134,-669.74921114,0.00030912,2]
[391776005,1760796638146,-593.2364271,0.00030912,2]
[391776006,1760796638157,-760.99378999,0.00030912,2]
[391776007,1760796638169,-1482.29095557,0.00030912,2]
[391776008,1760796638179,-180.6698698,0.00030912,2]
[391776009,1760796638188,-923.0,0.00031,3]
[391776010,1760796638200,-179.42,0.00031084,28]
[391776011,1760796638210,-444.32,0.00031209,15]
[391776012,1760796638219,-392.5260468,0.00031218,30]
[391776013,1760796638228,-392.5260468,0.00031218,30]
[391776014,1760796638238,-392.5260468,0.00031218,30]
[391776015,1760796638247,-392.5260468,0.00031218,30]
[391776016,1760796638257,-392.5260468,0.00031218,30]
[391776017,1760796638266,-128.02080657,0.00031218,30]
[391776039,1760796642858,-264.41547913,0.00031218,30]
[391776040,1760796642868,-199.0,0.00031267,7]
[391776041,1760796642877,-444.32,0.00031309,15]
[391776042,1760796642886,-827.24464036,0.0003135,2]
[391776043,1760796642895,-3305.66958289,0.0003135,2]
[391776044,1760796642904,-720.0,0.00031382,30]
[391776045,1760796642914,-444.32,0.00031409,15]
[391776046,1760796642924,-560.0,0.00031458,2]
[391776047,1760796642933,-444.32,0.00031509,15]
[391776048,1760796642942,-199.0,0.00031541,8]
[391776049,1760796642952,-444.32,0.00031609,15]
[391776050,1760796642961,-303.07618837,0.00031609,2]
[391776052,1760796642970,-444.32,0.00031709,15]
[391776053,1760796642979,-444.32,0.00031809,15]
[391776054,1760796642989,-280.73819981,0.00031815,9]
[391776055,1760796642999,-876.07,0.00031889,2]
[391776056,1760796643008,-444.32,0.00031909,15]
[391776057,1760796643018,-160.0,0.00031929,3]
[391776058,1760796643028,-503.01623366,0.00031969,7]
[391776059,1760796643037,-306.0,0.00032,5]
[391776060,1760796643047,-660.0,0.00032006,2]
[391776061,1760796643056,-444.32,0.00032009,15]
[391776062,1760796643065,-444.32,0.00032109,15]
[391776063,1760796643075,-200.0,0.000322,120]
[391776064,1760796643084,-444.32,0.00032209,15]
[391776065,1760796643093,-444.32,0.00032309,15]
[391776066,1760796643102,-27.91366312,0.00032409,15]
[391776098,1760797019236,150.0,0.00020617,2]
[391776099,1760797019670,201.99,0.00022491,2]
[391776100,1760797101433,150.0,0.00020391,2]
[391776101,1760797101882,193.03,0.00022245,2]
[391776102,1760797102284,289.55,0.00024098,2]
[391776106,1760797180465,150.0,0.000204,2]
[391776107,1760797180995,176.93,0.00022254,2]
[391776108,1760797181511,265.39,0.00024109,2]
[391776109,1760797195912,193.05916811,0.00013699,2]
[391776110,1760797195936,263.32011889,0.00013699,2]
[391776111,1760797196088,456.379287,0.00020187,2]
[391776113,1760797259453,150.0,0.00020106,2]
[391776114,1760797259873,161.85,0.00021934,2]
[391776115,1760797260331,242.78,0.00023762,2]
[391776117,1760797338920,150.0,0.00020126,2]
[391776118,1760797339351,150.0,0.00021956,2]
[391776119,1760797339765,221.6,0.00023785,2]
[391776120,1760797418411,150.0,0.00020134,2]
[391776121,1760797418990,150.0,0.00021964,2]
[391776122,1760797419420,201.69,0.00023795,2]
[391776123,1760797441912,10000.0,0.00029041,120]
[391776132,1760797498303,150.0,0.00020128,2]
[391776133,1760797498710,150.0,0.00021957,2]
[391776134,1760797499156,182.53,0.00023787,2]
[391776160,1760797576863,150.0,0.00020097,2]
[391776163,1760797577276,150.0,0.00021924,2]
[391776164,1760797577898,164.11,0.00023751,2]
[391776190,1760797649859,3186.85532,0.000242,2]
[391776192,1760797654826,150.0,0.00020098,2]
[391776193,1760797655247,150.0,0.00021925,2]
[391776194,1760797655666,150.0,0.00023752,2]
[391776223,1760797712049,3118.89527411,0.00015,2]
[391776224,1760797712072,2004.19127589,0.00015,2]
[391776237,1760797732007,150.0,0.00020094,2]
[391776239,1760797732473,150.0,0.0002192,2]
[391776240,1760797732864,150.0,0.00023747,2]
[391776256,1760797767253,500.0,0.0003395,120]
[391776257,1760797767648,500.0,0.0003395,120]
[391776271,1760797809825,150.0,0.00020093,2]
[391776272,1760797810295,150.0,0.0002192,2]
[391776274,1760797810975,150.0,0.00023747,2]
[391776318,1760797832000,-150.0,0.00024694,2]
[391776320,1760797832010,-211.53941359,0.00024831,4]
[391776322,1760797832021,-160.0,0.00024931,2]
[391776324,1760797832031,-172.5,0.00025294,2]
[391776326,1760797832040,-150.0,0.00025573,2]
[391776328,1760797832049,-199.9818119,0.00025894,2]
[391776330,1760797832059,-456.379287,0.00026676,2]
[391776332,1760797832069,-402.78104431,0.00027322,2]
[391776334,1760797832079,-186.7,0.000274,2]
[391776336,1760797832088,-179.64071856,0.00027684,2]
[391776338,1760797832098,-500.0,0.00027831,7]
[391776340,1760797832108,-1200.0,0.00027864,2]
[391776343,1760797832117,-189.0,0.00027865,2]
[391776345,1760797832127,-300.0,0.00027865,2]
[391776348,1760797832136,-300.0,0.00027866,30]
[391776351,1760797832146,-300.0,0.00027866,30]
[391776354,1760797832156,-300.0,0.00027866,30]
[391776358,1760797832166,-300.0,0.00027866,30]
[391776361,1760797832176,-300.0,0.00027866,30]
[391776364,1760797832185,-300.0,0.00027866,30]
[391776365,1760797832194,-300.0,0.00027866,30]
[391776367,1760797832203,-300.0,0.00027866,30]
[391776369,1760797832213,-300.0,0.00027866,30]
[391776371,1760797832222,-300.0,0.00027866,30]
[391776373,1760797832232,-300.0,0.00027866,30]
[391776375,1760797832241,-300.0,0.00027866,30]
[391776377,1760797832251,-300.0,0.00027866,30]
[391776379,1760797832260,-300.0,0.00027866,30]
[391776381,1760797832269,-300.0,0.00027866,30]
[391776383,1760797832278,-153.14058658,0.0002798,2]
[391776385,1760797832287,-187.22700392,0.00028276,2]
[391776387,1760797832297,-151.76994319,0.00028276,2]
[391776389,1760797832306,-258.42710589,0.00028293,2]
[391776667,1760797837731,-667.08320199,0.00026879,2]
[391776668,1760797837740,-472.72968921,0.00026879,4]
[391776800,1760797839989,-548.53835989,0.00026879,4]
[391776801,1760797839999,-163.85494636,0.00026879,4]
[391776871,1760797843144,-3921.21725003,0.00026879,4]
[391776872,1760797843154,-600.0,0.00028422,30]
[391776873,1760797843164,-162.59732064,0.00028609,4]
[391776874,1760797843173,-224.04,0.00029226,2]
[391776875,1760797843183,-411.0,0.00029699,2]
[391776876,1760797843193,-160.0,0.0002995,2]
[391776878,1760797843203,-420.0,0.00030098,2]
[391776879,1760797843212,-400.22542933,0.00030137,120]
[391776911,1760797884692,150.0,0.00023838,2]
[391776917,1760798096978,1166.66,0.00033951,120]
[391776918,1760798097219,1166.66,0.00033951,120]
[391776919,1760798097455,1166.66,0.00033951,120]
[391776920,1760798097715,1166.66,0.00033951,120]
[391776921,1760798097956,1166.66,0.00033951,120]
[391776922,1760798098225,1166.66,0.00033951,120]
[391776923,1760798098484,1166.66,0.00033951,120]
[391776924,1760798098721,1166.66,0.00033951,120]
[391776925,1760798098957,1166.66,0.00033951,120]
[391776926,1760798099190,1166.66,0.00033951,120]
[391776927,1760798099411,1166.66,0.00033951,120]
[391776928,1760798099650,1166.66,0.00033951,120]
[391776929,1760798100227,1166.66,0.00033951,120]
[391776930,1760798100443,1166.66,0.00033951,120]
[391776931,1760798100681,1166.66,0.00033951,120]
[391776932,1760798100929,1166.66,0.00033951,120]
[391776933,1760798101174,1166.66,0.00033951,120]
[391776934,1760798101413,1166.66,0.00033951,120]
[391776935,1760798101657,1166.66,0.00033951,120]
[391776936,1760798101917,1166.66,0.00033951,120]
[391776937,1760798102163,1166.66,0.00033951,120]
[391776938,1760798103180,1166.66,0.00033951,120]
[391776939,1760798103425,1166.66,0.00033951,120]
[391776940,1760798103664,1166.66,0.00033951,120]
[391776942,1760798185235,834.55,0.00033951,120]
[391776943,1760798185515,834.55,0.00033951,120]
[391776944,1760798185705,834.55,0.00033951,120]
[391776945,1760798185985,834.55,0.00033951,120]
[391776946,1760798186228,834.55,0.00033951,120]
[391776947,1760798186462,834.55,0.00033951,120]
[391776948,1760798186711,834.55,0.00033951,120]
[391776949,1760798186948,834.55,0.00033951,120]
[391776950,1760798187185,834.55,0.00033951,120]
[391776951,1760798187465,834.55,0.00033951,120]
[391776952,1760798187697,834.55,0.00033951,120]
[391776953,1760798187953,834.55,0.00033951,120]
[391776954,1760798188184,834.55,0.00033951,120]
[391776955,1760798188422,834.55,0.00033951,120]
[391776956,1760798188677,834.55,0.00033951,120]
[391776957,1760798188925,834.55,0.00033951,120]
[391776958,1760798189310,834.55,0.00033951,120]
[391776959,1760798189592,834.55,0.00033951,120]
[391776960,1760798189841,834.55,0.00033951,120]
[391776961,1760798190078,834.55,0.00033951,120]
[391776962,1760798190324,834.55,0.00033951,120]
[391776963,1760798190579,834.55,0.00033951,120]
[391776964,1760798190805,834.55,0.00033951,120]
[391776965,1760798191039,834.59465948,0.00033951,120]
[391776966,1760798438664,417.15472785,0.000242,2]
[391777027,1760799032221,-1701.56195434,0.00024953,2]
[391777030,1760799032233,-3298.43804566,0.00024953,2]
[391777032,1760799032243,-2692.5913,0.00025205,2]
[391777033,1760799032253,-265.0,0.00026573,2]
[391777036,1760799032263,-300.0,0.00026848,2]
[391777037,1760799032272,-157.332749,0.00027174,2]
[391777039,1760799032281,-467.62474843,0.0002735,2]
[391777041,1760799032291,-841.72454718,0.0002735,2]
[391777044,1760799032300,-1494.90279579,0.0002735,2]
[391777047,1760799032309,-307.01827292,0.0002735,2]
[391777050,1760799032319,-31432.80725049,0.00027385,2]
[391777594,1760799037910,-411.50038702,0.00024953,2]
[391777596,1760799037919,-129.69918694,0.0002735,2]
[391777793,1760799040241,-356.31469195,0.0002735,2]
[391777809,1760799043017,-40.33359518,0.0002735,2]
[391777810,1760799043027,-947.42545332,0.0002735,2]
[391777811,1760799043038,-1684.31191702,0.0002735,2]
[391777812,1760799043047,-2627.92903448,0.0002735,2]
[391777813,1760799043060,-3.80833586,0.0002735,2]
[391777814,1760799043070,-2790.84704539,0.0002735,2]
[391777826,1760799080425,200.0,0.00033952,120]
[391777827,1760799186082,203.4,0.00029041,120]
[391777830,1760799621301,156.0,0.00024,120]
[391777831,1760799622612,156.0,0.000269,120]
[391777832,1760799794712,1000.0,0.00033951,60]
[391777833,1760799795832,1000.0,0.00033951,60]
[391777834,1760799796802,1000.0,0.00033951,60]
[391777835,1760799797540,1000.0,0.00033951,60]
[391777836,1760799798302,1000.0,0.00033951,60]
[391777837,1760799867093,1164.46,0.00033951,120]
[391777838,1760799867343,1164.46,0.00033951,120]
[391777839,1760799867671,1164.46,0.00033951,120]
[391777840,1760799867924,1164.46,0.00033951,120]
[391777841,1760799868249,1164.46,0.00033951,120]
[391777842,1760799868408,1164.46,0.00033951,120]
[391777843,1760799868654,1164.46,0.00033951,120]
[391777844,1760799868883,1164.46,0.00033951,120]
[391777845,1760799869127,1164.46,0.00033951,120]
[391777846,1760799869351,1164.46,0.00033951,120]
[391777847,1760799869590,1164.46,0.00033951,120]
[391777848,1760799869850,1164.46,0.00033951,120]
[391777849,1760799870108,1164.46,0.00033951,120]
[391777850,1760799870353,1164.46,0.00033951,120]
[391777851,1760799870588,1164.46,0.00033951,120]
[391777852,1760799870823,1164.46,0.00033951,120]
[391777853,1760799871070,1164.46,0.00033951,120]
[391777854,1760799871318,1164.46,0.00033951,120]
[391777855,1760799871548,1164.46,0.00033951,120]
[391777856,1760799871785,1164.46,0.00033951,120]
[391777857,1760799872035,1164.46,0.00033951,120]
[391777858,1760799872278,1164.46,0.00033951,120]
[391777859,1760799872543,1164.46,0.00033951,120]
[391777860,1760799872796,1164.530272,0.00033951,120]
[391777861,1760799897636,398.338578,0.00013699,2]
[391777862,1760799898060,398.338578,0.00020187,2]
[391777874,1760799942874,998.8547679,0.00023449,2]
[391777875,1760799944785,4733.13207236,0.00023449,2]
[391777876,1760799944810,425.07317351,0.00023449,2]
[391777878,1760799946994,6730.51042041,0.00023449,2]
[391777893,1760800095882,208.44990983,0.00023449,2]
[391777895,1760800097690,374.83462785,0.00023449,2]
[391777912,1760800160316,433.77848251,0.00033951,120]
[391777939,1760800213604,249.98999908,0.00033951,120]
[391777974,1760800232434,-150.0,0.00024683,2]
[391777976,1760800232444,-319.30102155,0.00025111,2]
[391777978,1760800232454,-364.55053775,0.00025111,2]
[391777980,1760800232463,-50.95803227,0.00025175,2]
[391778496,1760800259415,417.15472785,0.000242,2]
[391778502,1760800330215,1843.98714055,0.000242,2]
[391778503,1760800330239,8156.01285945,0.000242,2]
[391778504,1760800342429,1843.99714055,0.000242,2]
[391778505,1760800342453,3194.00285945,0.000242,2]
[391778515,1760800445808,600.0,0.00033951,60]
[391778520,1760800644267,766.59,0.00029,120]
[391778522,1760800822590,3616.0,0.00029041,120]
[391778524,1760800954497,150.0,0.000242,2]
[391778538,1760801179844,417.15472785,0.000242,2]
[391778591,1760801432469,-163.3823457,0.00024316,2]
[391778593,1760801432479,-150.0,0.00024316,2]
[391778595,1760801432488,-160.69891052,0.00024916,2]
[391778597,1760801432502,-138.15144058,0.00024916,2]
[391778599,1760801432511,-276.86094454,0.0002492,7]
[391778601,1760801432520,-300.0,0.00025175,2]
[391778603,1760801432530,-300.0,0.00025175,2]
[391778605,1760801432539,-119.97728942,0.00025175,2]
[391778607,1760801432550,-180.02271058,0.00025175,2]
[391778608,1760801432559,-300.0,0.00025175,2]
[391778610,1760801432568,-506.074535,0.00025176,2]
[391778614,1760801432592,-10922.70800917,0.00025176,2]
[391778616,1760801432601,-300.0,0.00025176,20]
[391778618,1760801432611,-300.0,0.00025176,20]
[391778620,1760801432621,-300.0,0.00025176,20]
[391778622,1760801432630,-300.0,0.00025176,20]
[391778623,1760801432639,-300.0,0.00025176,20]
[391778627,1760801432649,-300.0,0.00025176,20]
[391778629,1760801432658,-300.0,0.00025176,20]
[391778630,1760801432668,-300.0,0.00025176,20]
[391778632,1760801432677,-300.0,0.00025176,20]
[391778634,1760801432687,-300.0,0.00025176,20]
[391778636,1760801432696,-300.0,0.00025176,20]
[391778638,1760801432706,-300.0,0.00025176,20]
[391778641,1760801432716,-300.0,0.00025176,20]
[391778642,1760801432726,-300.0,0.00025176,20]
[391778644,1760801432735,-300.0,0.00025176,20]
[391778647,1760801432745,-151.0,0.00025657,7]
[391778648,1760801432755,-151.0,0.00025657,7]
[391778650,1760801432764,-151.0,0.00025657,7]
[391778653,1760801432774,-151.0,0.00025657,7]
[391778654,1760801432783,-230.189576,0.00025657,7]
[391778656,1760801432793,-151.0,0.00025657,7]
[391778658,1760801432803,-151.0,0.00025657,7]
[391778660,1760801432812,-30308.1069803,0.00025658,2]
[391778662,1760801432822,-3445.17228489,0.00025658,2]
[391778664,1760801432831,-151.0,0.0002566,2]
[391778666,1760801432841,-151.0,0.0002566,2]
[391778668,1760801432850,-151.0,0.0002566,2]
[391778670,1760801432859,-224.40394054,0.0002566,2]
[391778672,1760801432868,-151.0,0.00025666,7]
[391778674,1760801432877,-195.927042,0.00025666,7]
[391778676,1760801432887,-195.927042,0.00025666,7]
[391778678,1760801432896,-151.0,0.00025666,7]
[391778680,1760801432906,-195.927042,0.00025666,7]
[391778682,1760801432916,-195.927042,0.00025666,7]
[391778684,1760801432925,-195.927042,0.00025666,7]
[391778686,1760801432934,-195.927034,0.00025666,7]
[391778688,1760801432943,-151.0,0.00025666,7]
[391778690,1760801432952,-151.0,0.00025666,7]
[391778692,1760801432962,-151.0,0.00025666,7]
[391778694,1760801432971,-151.0,0.00025666,7]
[391778695,1760801432980,-301.9999992,0.00025666,7]
[391778697,1760801432990,-151.0,0.00025666,7]
[391778699,1760801432999,-151.0,0.00025666,7]
[391778701,1760801433008,-151.0,0.00025666,7]
[391778703,1760801433018,-151.0,0.00025666,7]
[391778705,1760801433027,-151.0,0.00025666,7]
[391778707,1760801433036,-151.0,0.00025666,7]
[391778709,1760801433045,-151.0,0.00025666,7]
[391778711,1760801433055,-151.0,0.00025666,7]
[391778713,1760801433064,-151.0,0.00025666,7]
[391778715,1760801433074,-151.0,0.00025666,7]
[391778717,1760801433083,-219.623818,0.00025666,7]
[391778719,1760801433092,-151.0,0.00025666,7]
[391778720,1760801433101,-151.0,0.00025666,7]
[391778722,1760801433111,-151.0,0.00025666,7]
[391778723,1760801433120,-151.0,0.00025666,7]
[391778724,1760801433129,-151.0,0.00025666,7]
[391778725,1760801433138,-151.0,0.00025666,7]
[391778726,1760801433148,-161.146462,0.00025666,7]
[391778727,1760801433157,-151.0,0.00025666,7]
[391778728,1760801433167,-151.0,0.00025666,7]
[391778729,1760801433176,-437.18411946,0.00025666,2]
[391778730,1760801433187,-151.0,0.00025666,7]
[391778731,1760801433196,-151.0,0.00025666,7]
[391778732,1760801433206,-199.61529667,0.00025666,2]
[391778733,1760801433216,-151.0,0.00025666,7]
[391778734,1760801433226,-151.0,0.00025666,7]
[391778735,1760801433236,-151.0,0.00025666,7]
[391778736,1760801433247,-213.195204,0.00025666,7]
[391778737,1760801433256,-151.0,0.00025666,7]
[391778738,1760801433266,-151.0,0.00025666,7]
[391778739,1760801433275,-151.0,0.00025666,7]
[391778740,1760801433285,-203.671616,0.00025666,7]
[391778741,1760801433294,-151.0,0.00025666,7]
[391778742,1760801433304,-151.0,0.00025666,7]
[391778743,1760801433313,-151.0,0.00025666,7]
[391778744,1760801433323,-151.0,0.00025666,7]
[391778745,1760801433332,-151.0,0.00025666,7]
[391778746,1760801433341,-180.734418,0.00025666,7]
[391778747,1760801433351,-151.0,0.00025667,7]
[391778748,1760801433360,-151.0,0.00025667,7]
[391778749,1760801433369,-151.0,0.00025667,7]
[391778750,1760801433380,-151.0,0.00025667,7]
[391778751,1760801433390,-199.901419,0.00025667,7]
[391778752,1760801433400,-152.625312,0.00025667,7]
[391778753,1760801433409,-151.0,0.00025667,7]
[391778754,1760801433421,-152.059526,0.00025667,7]
[391778755,1760801433431,-177.662672,0.00025667,7]
[391778756,1760801433442,-151.0,0.00025667,7]
[391778757,1760801433452,-151.0,0.00025667,7]
[391778758,1760801433461,-1000.0,0.00025667,2]
[391778759,1760801433470,-1000.0,0.00025667,2]
[391778760,1760801433479,-386.246343,0.00025667,7]
[391778761,1760801433488,-1000.0,0.00025667,2]
[391778762,1760801433498,-386.246343,0.00025667,7]
[391778763,1760801433509,-1000.0,0.00025667,2]
[391778764,1760801433518,-386.246343,0.00025667,7]
[391778765,1760801433527,-1000.0,0.00025667,2]
[391778766,1760801433536,-386.246343,0.00025667,7]
[391778767,1760801433546,-1000.0,0.00025667,2]
[391778768,1760801433555,-386.246343,0.00025667,7]
[391778769,1760801433564,-1000.0,0.00025667,2]
[391778770,1760801433573,-386.246343,0.00025667,7]
[391778771,1760801433583,-386.246343,0.00025667,7]
[391778772,1760801433592,-1000.0,0.00025667,2]
[391778773,1760801433602,-386.246343,0.00025667,7]
[391778774,1760801433613,-1000.0,0.00025667,2]
[391778775,1760801433622,-386.246343,0.00025667,7]
[391778776,1760801433631,-1000.0,0.00025667,2]
[391778777,1760801433640,-386.246343,0.00025667,7]
[391778778,1760801433649,-1000.0,0.00025667,2]
[391778779,1760801433659,-386.246343,0.00025667,7]
[391778780,1760801433668,-1000.0,0.00025667,2]
[391778781,1760801433677,-386.246343,0.00025667,7]
[391778782,1760801433686,-1000.0,0.00025667,2]
[391778783,1760801433696,-386.246343,0.00025667,7]
[391778784,1760801433706,-1000.0,0.00025667,2]
[391778785,1760801433715,-386.246343,0.00025667,7]
[391778786,1760801433723,-1000.0,0.00025667,2]
[391778787,1760801433732,-386.246343,0.00025667,7]
[391778788,1760801433742,-1000.0,0.00025667,2]
[391778789,1760801433753,-386.246343,0.00025667,7]
[391778790,1760801433762,-1000.0,0.00025667,2]
[391778791,1760801433772,-386.246343,0.00025667,7]
[391778792,1760801433781,-1000.0,0.00025667,2]
[391778793,1760801433791,-1000.0,0.00025667,2]
[391778794,1760801433800,-386.246343,0.00025667,7]
[391778795,1760801433810,-1000.0,0.00025667,2]
[391778796,1760801433820,-386.246343,0.00025667,7]
[391778797,1760801433830,-1000.0,0.00025667,2]
[391778798,1760801433839,-386.246335,0.00025667,7]
[391778799,1760801433848,-1000.0,0.00025667,2]
[391778800,1760801433858,-1000.0,0.00025667,2]
[391778801,1760801433868,-1000.0,0.00025667,2]
[391778802,1760801433878,-1000.0,0.00025667,2]
[391778803,1760801433888,-1000.0,0.00025667,2]
[391778804,1760801433897,-1000.0,0.00025667,2]
[391778805,1760801433907,-1081.95682,0.00025667,2]
[391778806,1760801433916,-500.0,0.00025667,2]
[391778807,1760801433932,-151.0,0.00025668,7]
[391778808,1760801433946,-151.0,0.00025668,7]
[391778809,1760801433957,-151.0,0.00025668,2]
[391778810,1760801433967,-151.0,0.00025668,2]
[391778811,1760801433976,-151.0,0.00025668,7]
[391778812,1760801433985,-151.0,0.00025668,7]
[391778813,1760801433996,-151.0,0.00025668,2]
[391778814,1760801434006,-151.0,0.00025668,7]
[391778815,1760801434016,-151.0,0.00025668,7]
[391778816,1760801434025,-155.596067,0.00025668,7]
[391778817,1760801434035,-500.0,0.00025673,2]
[391778818,1760801434045,-500.0,0.00025673,2]
[391778819,1760801434054,-151.0,0.00025674,7]
[391778820,1760801434063,-151.0,0.00025674,7]
[391778821,1760801434072,-151.0,0.00025674,7]
[391778822,1760801434082,-151.0,0.00025674,7]
[391778823,1760801434091,-154.231239,0.00025674,7]
[391778824,1760801434101,-151.0,0.00025674,7]
[391778825,1760801434111,-301.99999994,0.00025674,7]
[391778826,1760801434121,-156.010004,0.00025674,7]
[391778827,1760801434131,-198.136253,0.00025674,7]
[391778828,1760801434141,-151.0,0.00025674,2]
[391778829,1760801434150,-151.0,0.00025674,2]
[391778830,1760801434159,-151.0,0.00025674,2]
[391778831,1760801434170,-151.0,0.00025674,2]
[391778832,1760801434181,-151.0,0.00025674,2]
[391778833,1760801434190,-151.0,0.00025674,2]
[391778834,1760801434200,-151.0,0.00025674,7]
[391778835,1760801434210,-151.0,0.00025674,2]
[391778836,1760801434219,-151.0,0.00025674,7]
[391778837,1760801434230,-151.0,0.00025674,2]
[391778838,1760801434239,-151.0,0.00025674,7]
[391778839,1760801434248,-151.0,0.00025674,7]
[391778840,1760801434258,-151.0,0.00025674,7]
[391778841,1760801434267,-151.0,0.00025674,2]
[391778842,1760801434277,-151.0,0.00025674,7]
[391778843,1760801434287,-151.0,0.00025674,2]
[391778844,1760801434298,-151.0,0.00025674,7]
[391778845,1760801434308,-151.0,0.00025674,7]
[391778846,1760801434317,-151.0,0.00025674,2]
[391778847,1760801434327,-204.758946,0.00025674,2]
[391778848,1760801434336,-279.638619,0.00025674,7]
[391778849,1760801434346,-159.84702824,0.00025674,2]
[391778850,1760801434356,-500.0,0.00025674,2]
[391778851,1760801434366,-262.928332,0.00025675,7]
[391778852,1760801434375,-151.0,0.00025675,7]
[391778853,1760801434384,-151.0,0.00025675,7]
[391778854,1760801434393,-151.0,0.00025675,7]
[391778855,1760801434402,-151.0,0.00025675,7]
[391778856,1760801434412,-277.113504,0.00025675,7]
[391778857,1760801434424,-151.0,0.00025675,7]
[391778858,1760801434434,-151.0,0.00025675,7]
[391778859,1760801434444,-151.0,0.00025675,7]
[391778860,1760801434453,-151.0,0.00025675,7]
[391778861,1760801434463,-151.0,0.00025675,7]
[391778862,1760801434472,-151.0,0.00025675,3]
[391778863,1760801434481,-151.0,0.00025675,3]
[391778864,1760801434491,-288.242912,0.00025675,7]
[391778865,1760801434503,-151.0,0.00025675,3]
[391778866,1760801434512,-151.0,0.00025675,3]
[391778867,1760801434522,-151.0,0.00025675,3]
[391778868,1760801434531,-247.418416,0.00025675,3]
[391778869,1760801434542,-151.0,0.00025675,7]
[391778870,1760801434551,-152.77705325,0.00025676,2]
[391778871,1760801434560,-151.0,0.00025676,2]
[391778872,1760801434571,-500.0,0.00025676,2]
[391778873,1760801434580,-500.0,0.00025676,2]
[391778874,1760801434589,-6299.66424815,0.00025677,2]
[391778875,1760801434598,-155.0,0.00025678,2]
[391778876,1760801434609,-1000.0,0.00025678,2]
[391778877,1760801434619,-1000.0,0.00025678,2]
[391778878,1760801434628,-1000.0,0.00025678,2]
[391778879,1760801434638,-1007.56162797,0.00025678,2]
[391778880,1760801434648,-600.0,0.00025679,20]
[391778881,1760801434658,-500.0,0.00025729,2]
[391778882,1760801434667,-151.0,0.00025731,2]